fUST/lending_fUST_20251128
["ID","MTS","AMOUNT","RATE_DAILY","PERIOD"]
[395012181,1764325843130,-656.1323974,7.075e-05,2]
[395012182,1764325843140,-656.1323974,7.075e-05,2]
[395012183,1764325843149,-656.1323974,7.075e-05,2]
[395012184,1764325843159,-656.1323974,7.075e-05,2]
[395012185,1764325843168,-204.60255615,7.075e-05,2]
[395012186,1764325843347,-451.52984125,7.075e-05,2]
[395012187,1764325843357,-656.1323974,7.075e-05,2]
[395012188,1764325843366,-27.38300668,7.075e-05,2]
[395012189,1764325843378,-289.54641168,7.075e-05,2]
[395012193,1764325845949,-253.7425319,7.075e-05,2]
[395012194,1764325899504,318695.0,0.0001212,6]
[395012198,1764326116390,200.0,0.0002,30]
[395012199,1764326118180,200.0,0.0002,30]
[395012200,1764326119990,327.64324858,0.0002,30]
[395012201,1764326239046,5000.0,0.000215,120]
[395012202,1764326249359,2379.26667944,0.0001333,9]
[395012203,1764326289362,5874.88,0.000215,120]
[395012205,1764326769267,593.4735051,0.0002142,120]
[395012206,1764326957909,150.0,0.0001333,9]
[395012207,1764326966355,4717.97,0.0001333,9]
[395012208,1764327001845,1020.74,1e-05,2]
[395012209,1764327002802,-270.23047539,6.766e-05,2]
[395012210,1764327002943,1020.74,1e-05,2]
[395012211,1764327004017,1020.74,1e-05,2]
[395012212,1764327005116,1020.74,1e-05,2]
[395012213,1764327006158,1020.74,1e-05,2]
[395012214,1764327007238,1020.74,1e-05,2]
[395012215,1764327008687,1020.74,1e-05,2]
[395012216,1764327009389,1020.74,1e-05,2]
[395012217,1764327011693,1020.74,1e-05,2]
[395012218,1764327012794,1020.74,1e-05,2]
[395012219,1764327013849,1020.74,1e-05,2]
[395012220,1764327014924,1020.74,1e-05,2]
[395012221,1764327015988,1020.74,1e-05,2]
[395012222,1764327017637,1020.74,1e-05,2]
[395012223,1764327019198,813.35,1e-05,2]
[395012224,1764327019220,207.39,1e-05,2]
[395012225,1764327019761,1020.74,1e-05,2]
[395012226,1764327020947,1020.74,1e-05,2]
[395012227,1764327021942,1020.74,1e-05,2]
[395012228,1764327022995,1020.74,1e-05,2]
[395012229,1764327024140,1020.74,1e-05,2]
[395012230,1764327025193,1020.74,1e-05,2]
[395012231,1764327026243,1020.74,1e-05,2]
[395012232,1764327027894,1020.74,1e-05,2]
[395012233,1764327028740,-179.76952461,6.766e-05,2]
[395012234,1764327028762,-42.48732985,6.766e-05,2]
[395012235,1764327028960,1020.74,1e-05,2]
[395012236,1764327030075,1020.74,1e-05,2]
[395012237,1764327031138,1020.74,1.1e-05,2]
[395012239,1764327032052,-165.51267015,6.766e-05,2]
[395012240,1764327032061,-306.28225597,6.834e-05,2]
[395012241,1764327032361,1020.74,1.1e-05,2]
[395012242,1764327033376,813.35,1.1e-05,2]
[395012243,1764327033400,207.39,1.1e-05,2]
[395012244,1764327034251,1020.74,1.1e-05,2]
[395012245,1764327035316,1020.74,1.1e-05,2]
[395012246,1764327036390,1020.74,1.1e-05,2]
[395012247,1764327037469,1020.74,1.1e-05,2]
[395012248,1764327037896,-143.71774403,6.834e-05,2]
[395012249,1764327037905,-4215.2887285,6.875e-05,2]
[395012250,1764327037917,-3024.78344181,6.875e-05,2]
[395012251,1764327038527,1020.74,1.1e-05,2]
[395012265,1764327040308,1020.74,1.1e-05,2]
[395012266,1764327040583,-2759.93782969,6.875e-05,2]
[395012267,1764327040592,-810.0,6.903e-05,2]
[395012268,1764327040601,-300.0,6.973e-05,2]
[395012269,1764327040611,-300.0,6.973e-05,2]
[395012270,1764327040620,-162.37595216,6.98e-05,2]
[395012271,1764327040630,-488.65876507,6.98e-05,2]
[395012272,1764327040639,-500.45443145,6.98e-05,2]
[395012273,1764327040653,-500.0,6.98e-05,2]
[395012274,1764327040662,-500.0,6.98e-05,2]
[395012275,1764327040671,-503.04897163,6.98e-05,2]
[395012276,1764327040681,-500.0,6.98e-05,2]
[395012277,1764327040692,-500.0,6.98e-05,2]
[395012278,1764327040701,-1000.0,7.528e-05,2]
[395012279,1764327040711,-1000.0,7.528e-05,2]
[395012280,1764327040720,-1642.38837259,8.076e-05,2]
[395012281,1764327040731,-1502.79014211,8.076e-05,2]
[395012282,1764327040740,-369.59038929,8.885e-05,2]
[395012283,1764327040750,-166.22853765,8.885e-05,2]
[395012284,1764327040759,-177.0,8.973e-05,2]
[395012285,1764327040768,-500.0,9.999e-05,2]
[395012286,1764327040777,-500.0,9.999e-05,2]
[395012287,1764327040787,-445.46974177,9.999e-05,2]
[395012288,1764327040797,-324.0199174,9.999e-05,2]
[395012289,1764327040806,-500.0,9.999e-05,2]
[395012290,1764327040816,-500.0,9.999e-05,2]
[395012291,1764327040825,-500.0,9.999e-05,2]
[395012292,1764327040835,-500.0,9.999e-05,2]
[395012293,1764327040845,-500.0,9.999e-05,2]
[395012294,1764327040854,-500.0,9.999e-05,2]
[395012295,1764327040863,-431.85802061,9.999e-05,2]
[395012296,1764327040872,-500.0,9.999e-05,2]
[395012297,1764327040881,-500.0,9.999e-05,2]
[395012298,1764327040890,-500.0,9.999e-05,2]
[395012299,1764327040900,-500.0,9.999e-05,2]
[395012300,1764327040911,-500.0,9.999e-05,2]
[395012301,1764327040921,-500.0,9.999e-05,2]
[395012302,1764327040930,-500.0,9.999e-05,2]
[395012303,1764327040939,-500.0,9.999e-05,2]
[395012304,1764327040948,-500.0,9.999e-05,2]
[395012305,1764327040957,-500.0,9.999e-05,2]
[395012306,1764327040966,-500.0,9.999e-05,2]
[395012307,1764327040975,-500.0,9.999e-05,2]
[395012308,1764327040985,-500.0,9.999e-05,2]
[395012309,1764327040995,-500.0,9.999e-05,2]
[395012310,1764327041005,-500.0,9.999e-05,2]
[395012311,1764327041015,-500.0,9.999e-05,2]
[395012312,1764327041026,-500.0,9.999e-05,2]
[395012313,1764327041035,-500.0,9.999e-05,2]
[395012314,1764327041044,-500.0,9.999e-05,2]
[395012315,1764327041059,-500.0,9.999e-05,2]
[395012316,1764327041074,-376.99501228,9.999e-05,2]
[395012317,1764327041101,-123.00498772,9.999e-05,2]
[395012318,1764327041113,-500.0,9.999e-05,2]
[395012319,1764327041123,-500.0,9.999e-05,2]
[395012320,1764327041133,-500.0,9.999e-05,2]
[395012321,1764327041143,-500.0,9.999e-05,2]
[395012322,1764327041153,-500.0,9.999e-05,2]
[395012323,1764327041163,-500.0,9.999e-05,2]
[395012324,1764327041172,-500.0,9.999e-05,2]
[395012325,1764327041183,-500.0,9.999e-05,2]
[395012326,1764327041193,-500.0,9.999e-05,2]
[395012327,1764327041202,-500.0,9.999e-05,2]
[395012328,1764327041211,-500.0,9.999e-05,2]
[395012329,1764327041221,-500.0,9.999e-05,2]
[395012330,1764327041231,-500.0,9.999e-05,2]
[395012331,1764327041241,-430.59217925,9.999e-05,2]
[395012332,1764327041251,-500.0,9.999e-05,2]
[395012333,1764327041260,-95.52810486,9.999e-05,2]
[395012334,1764327041440,1020.74,1.1e-05,2]
[395012335,1764327041743,1020.74,1.1e-05,2]
[395012338,1764327042820,1020.74,1.089e-05,2]
[395012339,1764327042954,605.96,1.1e-05,2]
[395012340,1764327042977,414.78,1.1e-05,2]
[395012341,1764327044077,1020.74,1.1e-05,2]
[395012342,1764327044293,-404.47189514,9.999e-05,2]
[395012343,1764327044303,-500.0,9.999e-05,2]
[395012344,1764327044312,-250.92810486,9.999e-05,2]
[395012345,1764327044324,-249.07189514,9.999e-05,2]
[395012346,1764327044333,-11486.58661956,0.0001,2]
[395012347,1764327044567,-920.38129747,0.0001,2]
[395012348,1764327044579,-436.70567626,0.0001,2]
[395012349,1764327045187,1020.74,1.1e-05,2]
[395012351,1764327046080,-1464.09542393,0.0001,2]
[395012354,1764327046679,1020.74,1.1e-05,2]
[395012355,1764327048104,1020.74,1.1e-05,2]
[395012356,1764327049235,1020.74,1.1e-05,2]
[395012357,1764327050912,1020.74,1.1e-05,2]
[395012358,1764327051463,1020.74,1.1e-05,2]
[395012359,1764327053171,1020.74,1.1e-05,2]
[395012360,1764327054297,1020.74,1.1e-05,2]
[395012361,1764327055319,398.57,1.1e-05,2]
[395012362,1764327055345,622.17,1.1e-05,2]
[395012363,1764327056361,1020.74,1.1e-05,2]
[395012364,1764327057981,1020.74,1.1e-05,2]
[395012365,1764327059225,1020.74,1.1e-05,2]
[395012367,1764327122455,597.89,1e-05,2]
[395012368,1764327123515,597.89,1e-05,2]
[395012369,1764327124567,597.89,1e-05,2]
[395012370,1764327125616,597.89,1e-05,2]
[395012371,1764327127325,597.89,1e-05,2]
[395012373,1764327128831,597.89,1.1e-05,2]
[395012374,1764327129652,597.89,1.1e-05,2]
[395012375,1764327131405,597.89,1.1e-05,2]
[395012378,1764327132550,597.89,1.1e-05,2]
[395012379,1764327133644,597.89,1.1e-05,2]
[395012380,1764327134919,336.72,1.1e-05,2]
[395012381,1764327134941,261.17,1.1e-05,2]
[395012382,1764327136526,597.89,1.1e-05,2]
[395012383,1764327137869,597.89,1.1e-05,2]
[395012384,1764327138938,597.89,1.1e-05,2]
[395012385,1764327140049,597.89,1.1e-05,2]
[395012386,1764327141750,597.89,1.2e-05,2]
[395012387,1764327142835,597.89,1.2e-05,2]
[395012388,1764327144001,597.89,1.2e-05,2]
[395012389,1764327145600,597.89,1.2e-05,2]
[395012390,1764327146647,597.89,1.2e-05,2]
[395012391,1764327147844,597.89,1.2e-05,2]
[395012392,1764327148974,597.89,1.2e-05,2]
[395012393,1764327150076,597.89,1.2e-05,2]
[395012394,1764327151139,597.89,1.2e-05,2]
[395012395,1764327152220,597.89,1.2e-05,2]
[395012396,1764327153383,597.89,1.3e-05,2]
[395012397,1764327154416,597.89,1.3e-05,2]
[395012398,1764327155796,597.89,1.3e-05,2]
[395012399,1764327155839,155.338867,0.000196,30]
[395012400,1764327156571,239.21321851,1.3e-05,2]
[395012401,1764327156592,358.67678149,1.3e-05,2]
[395012402,1764327157726,597.89,1.3e-05,2]
[395012403,1764327158843,597.89,1.3e-05,2]
[395012404,1764327159970,597.89,1.3e-05,2]
[395012405,1764327161097,597.89,1.3e-05,2]
[395012406,1764327163273,597.89,1.3e-05,2]
[395012407,1764327164346,597.89,1.3e-05,2]
[395012408,1764327165542,597.89,1.4e-05,2]
[395012409,1764327166585,597.89,1.4e-05,2]
[395012410,1764327168378,597.89,1.4e-05,2]
[395012411,1764327169593,597.89,1.4e-05,2]
[395012412,1764327170646,597.89,1.4e-05,2]
[395012413,1764327171722,597.89,1.4e-05,2]
[395012414,1764327173470,597.89,1.4e-05,2]
[395012415,1764327174969,597.89,1.4e-05,2]
[395012416,1764327175638,597.89,1.4e-05,2]
[395012417,1764327176853,597.89,1.4e-05,2]
[395012418,1764327177901,597.89,1.5e-05,2]
[395012419,1764327179173,597.89,1.5e-05,2]
[395012420,1764327180240,597.89,1.5e-05,2]
[395012421,1764327181356,597.89,1.5e-05,2]
[395012422,1764327182490,597.89,1.5e-05,2]
[395012423,1764327226519,160.0,5.9e-07,2]
[395012424,1764327227612,160.0,5.9e-07,2]
[395012425,1764327229666,160.0,5.9e-07,2]
[395012426,1764327229861,160.0,5.9e-07,2]
[395012427,1764327230962,160.0,5.9e-07,2]
[395012428,1764327232187,160.0,5.9e-07,2]
[395012429,1764327233398,160.0,5.9e-07,2]
[395012430,1764327241883,153.48,1e-05,2]
[395012431,1764327243081,153.48,1e-05,2]
[395012432,1764327244093,153.48,1e-05,2]
[395012433,1764327245805,153.48,1e-05,2]
[395012434,1764327246843,153.48,1.1e-05,2]
[395012435,1764327247877,153.48,1.1e-05,2]
[395012436,1764327248982,153.48,1.1e-05,2]
[395012437,1764327250046,153.48,1.1e-05,2]
[395012438,1764327251225,153.48,1.1e-05,2]
[395012439,1764327252212,153.48,1.1e-05,2]
[395012440,1764327253380,153.48,1.2e-05,2]
[395012441,1764327255039,153.48,1.2e-05,2]
[395012442,1764327256258,153.48,1.2e-05,2]
[395012443,1764327257356,153.48,1.2e-05,2]
[395012444,1764327258504,153.48,1.2e-05,2]
[395012445,1764327259534,153.48,1.2e-05,2]
[395012446,1764327261183,153.48,1.2e-05,2]
[395012447,1764327261831,153.48,1.3e-05,2]
[395012448,1764327262732,153.48,1.3e-05,2]
[395012449,1764327263789,153.48,1.3e-05,2]
[395012450,1764327264855,153.48,1.3e-05,2]
[395012451,1764327265925,153.48,1.3e-05,2]
[395012452,1764327266986,153.48,1.3e-05,2]
[395012453,1764327268046,153.48,1.3e-05,2]
[395012454,1764327269111,153.48,1.4e-05,2]
[395012455,1764327270187,153.48,1.4e-05,2]
[395012456,1764327271615,153.48,1.4e-05,2]
[395012457,1764327272337,153.48,1.4e-05,2]
[395012458,1764327273468,153.48,1.4e-05,2]
[395012459,1764327274524,153.48,1.4e-05,2]
[395012460,1764327276601,153.48,1.5e-05,2]
[395012461,1764327277373,153.48,1.5e-05,2]
[395012462,1764327278592,153.48,1.5e-05,2]
[395012463,1764327279606,153.48,1.5e-05,2]
[395012464,1764327302026,160.35,1e-05,2]
[395012465,1764327303090,160.35,1.1e-05,2]
[395012466,1764327304190,160.35,1.1e-05,2]
[395012467,1764327305365,160.35,1.2e-05,2]
[395012468,1764327307009,160.35,1.2e-05,2]
[395012469,1764327308243,160.35,1.3e-05,2]
[395012470,1764327309319,160.35,1.3e-05,2]
[395012471,1764327310583,160.35,1.4e-05,2]
[395012472,1764327312334,160.35,1.4e-05,2]
[395012473,1764327314101,160.35,1.5e-05,2]
[395012474,1764327363144,160.35,1e-05,2]
[395012475,1764327364263,160.35,1.1e-05,2]
[395012476,1764327366185,160.35,1.1e-05,2]
[395012477,1764327367349,160.35,1.2e-05,2]
[395012478,1764327368177,160.35,1.2e-05,2]
[395012479,1764327369267,160.35,1.3e-05,2]
[395012480,1764327370324,160.35,1.3e-05,2]
[395012481,1764327371372,160.35,1.4e-05,2]
[395012482,1764327372431,160.35,1.4e-05,2]
[395012483,1764327373506,160.35,1.5e-05,2]
[395012484,1764327422603,160.35,1e-05,2]
[395012485,1764327423664,160.35,1.1e-05,2]
[395012486,1764327424816,133.99,1.1e-05,2]
[395012487,1764327424839,26.36,1.1e-05,2]
[395012488,1764327426011,160.35,1.2e-05,2]
[395012489,1764327427659,160.35,1.2e-05,2]
[395012490,1764327428779,160.35,1.3e-05,2]
[395012491,1764327430057,160.35,1.3e-05,2]
[395012492,1764327430952,160.35,1.4e-05,2]
[395012493,1764327432612,160.35,1.4e-05,2]
[395012494,1764327433708,160.35,1.5e-05,2]
[395012495,1764327483088,157.28,1e-05,2]
[395012496,1764327484172,157.28,1e-05,2]
[395012497,1764327485230,157.28,1.1e-05,2]
[395012498,1764327487483,157.28,1.1e-05,2]
[395012499,1764327488568,157.28,1.2e-05,2]
[395012500,1764327489636,157.28,1.2e-05,2]
[395012501,1764327490709,157.28,1.3e-05,2]
[395012502,1764327491841,157.28,1.3e-05,2]
[395012503,1764327493622,157.28,1.3e-05,2]
[395012504,1764327494008,157.28,1.4e-05,2]
[395012505,1764327495094,157.28,1.4e-05,2]
[395012506,1764327496775,157.28,1.5e-05,2]
[395012507,1764327497912,157.28,1.5e-05,2]
[395012508,1764327542558,150.09,1e-05,2]
[395012509,1764327542956,150.09,1e-05,2]
[395012510,1764327544039,150.09,1.1e-05,2]
[395012511,1764327545129,150.09,1.1e-05,2]
[395012512,1764327546197,150.09,1.2e-05,2]
[395012513,1764327547324,150.09,1.2e-05,2]
[395012514,1764327548434,150.09,1.3e-05,2]
[395012515,1764327549524,150.09,1.3e-05,2]
[395012516,1764327550595,150.09,1.3e-05,2]
[395012517,1764327552230,150.09,1.4e-05,2]
[395012518,1764327553268,150.09,1.4e-05,2]
[395012519,1764327554323,150.09,1.5e-05,2]
[395012520,1764327555590,150.09,1.5e-05,2]
[395012521,1764327602085,150.1,1e-05,2]
[395012522,1764327603178,150.1,1e-05,2]
[395012523,1764327604318,150.1,1.1e-05,2]
[395012524,1764327606194,150.1,1.1e-05,2]
[395012525,1764327607240,150.1,1.2e-05,2]
[395012526,1764327608375,150.1,1.2e-05,2]
[395012527,1764327609443,150.1,1.3e-05,2]
[395012528,1764327610552,150.1,1.3e-05,2]
[395012529,1764327611676,150.1,1.3e-05,2]
[395012530,1764327612755,150.1,1.4e-05,2]
[395012531,1764327613998,150.1,1.4e-05,2]
[395012532,1764327615153,150.1,1.5e-05,2]
[395012533,1764327616825,150.1,1.5e-05,2]
[395012534,1764327662177,150.25,1e-05,2]
[395012535,1764327662888,150.25,1e-05,2]
[395012536,1764327664721,150.25,1.1e-05,2]
[395012537,1764327665762,150.25,1.1e-05,2]
[395012538,1764327667138,150.25,1.2e-05,2]
[395012539,1764327668212,150.25,1.2e-05,2]
[395012540,1764327669254,150.25,1.3e-05,2]
[395012541,1764327670605,150.25,1.3e-05,2]
[395012542,1764327671800,150.25,1.3e-05,2]
[395012543,1764327672919,150.25,1.4e-05,2]
[395012544,1764327673973,150.25,1.4e-05,2]
[395012545,1764327675095,150.25,1.5e-05,2]
[395012546,1764327676177,150.25,1.5e-05,2]
[395012547,1764327722327,162.34,1e-05,2]
[395012548,1764327723477,162.34,1.1e-05,2]
[395012549,1764327724958,162.34,1.1e-05,2]
[395012550,1764327725635,162.34,1.2e-05,2]
[395012551,1764327727318,162.34,1.3e-05,2]
[395012552,1764327728525,162.34,1.4e-05,2]
[395012553,1764327729616,162.34,1.4e-05,2]
[395012602,1764328232215,-500.0,5.994e-05,2]
[395012635,1764328238071,-1716.0,5.994e-05,2]
[395012668,1764328240264,-2353.29477159,5.994e-05,2]
[395012669,1764328240274,-1923.65863281,6.055e-05,2]
[395012670,1764328240285,-901.32466091,6.055e-05,2]
[395012671,1764328240321,-1744.31147787,6.055e-05,2]
[395012672,1764328240330,-4569.29477159,6.116e-05,2]
[395012673,1764328240340,-204.0,6.116e-05,2]
[395012674,1764328240349,-150.74325516,6.374e-05,2]
[395012675,1764328240358,-206.71259583,6.873e-05,2]
[395012676,1764328240368,-177.87704109,8.374e-05,2]
[395012677,1764328240377,-295.76099539,9.07e-05,2]
[395012678,1764328240386,-155.338867,9.46e-05,2]
[395012679,1764328240397,-166.9159948,9.701e-05,2]
[395012680,1764328240405,-10000.01,9.9e-05,2]
[395012681,1764328240415,-551.62337864,9.994e-05,2]
[395012682,1764328240424,-500.0,9.994e-05,2]
[395012683,1764328240433,-500.0,9.994e-05,2]
[395012684,1764328240442,-597.07256627,9.994e-05,2]
[395012686,1764328240721,-597.07256627,9.994e-05,2]
[395012687,1764328240732,-500.0,9.994e-05,2]
[395012688,1764328240741,-531.24873541,9.994e-05,2]
[395012689,1764328240750,-597.07256627,9.994e-05,2]
[395012690,1764328240759,-597.07256627,9.994e-05,2]
[395012691,1764328240769,-561.56544595,9.994e-05,2]
[395012692,1764328240778,-597.07256627,9.994e-05,2]
[395012693,1764328240787,-597.07256627,9.994e-05,2]
[395012694,1764328240795,-597.07256627,9.994e-05,2]
[395012695,1764328240804,-597.07256627,9.994e-05,2]
[395012696,1764328240813,-597.07256627,9.994e-05,2]
[395012697,1764328240822,-597.07256627,9.994e-05,2]
[395012698,1764328240831,-597.07256627,9.994e-05,2]
[395012699,1764328240840,-597.07256627,9.994e-05,2]
[395012700,1764328240849,-597.07256627,9.994e-05,2]
[395012701,1764328240858,-597.07256627,9.994e-05,2]
[395012702,1764328240867,-597.07256627,9.994e-05,2]
[395012703,1764328240876,-597.07256627,9.994e-05,2]
[395012704,1764328240885,-597.07256627,9.994e-05,2]
[395012705,1764328240896,-597.07256627,9.994e-05,2]
[395012706,1764328240906,-597.07256627,9.994e-05,2]
[395012707,1764328240915,-597.07256627,9.994e-05,2]
[395012708,1764328240925,-597.07256627,9.994e-05,2]
[395012709,1764328240935,-597.07256627,9.994e-05,2]
[395012710,1764328240944,-597.07256627,9.994e-05,2]
[395012711,1764328240953,-597.07256627,9.994e-05,2]
[395012712,1764328240963,-597.07256627,9.994e-05,2]
[395012713,1764328240972,-597.07256627,9.994e-05,2]
[395012714,1764328240981,-597.07256627,9.994e-05,2]
[395012715,1764328240992,-597.07256627,9.994e-05,2]
[395012716,1764328241003,-597.07256627,9.994e-05,2]
[395012717,1764328241013,-597.07256627,9.994e-05,2]
[395012718,1764328241023,-597.07256627,9.994e-05,2]
[395012719,1764328241032,-597.07256627,9.994e-05,2]
[395012720,1764328241042,-597.07256627,9.994e-05,2]
[395012721,1764328241051,-597.07256627,9.994e-05,2]
[395012722,1764328241061,-597.07256627,9.994e-05,2]
[395012723,1764328241070,-597.07256627,9.994e-05,2]
[395012724,1764328241079,-140.96132291,9.994e-05,2]
[395012732,1764328243332,-454.12,5.934e-05,2]
[395012733,1764328243369,-1899.17477159,5.934e-05,2]
[395012734,1764328243379,-456.11124336,9.994e-05,2]
[395012735,1764328243388,-597.07256627,9.994e-05,2]
[395012736,1764328243398,-597.07256627,9.994e-05,2]
[395012737,1764328243407,-597.07256627,9.994e-05,2]
[395012738,1764328243416,-597.07256627,9.994e-05,2]
[395012739,1764328243426,-171.42020238,9.994e-05,2]
[395012743,1764328341566,327.41544285,0.0002,30]
[395012744,1764328355985,155.338868,0.000192,30]
[395012756,1764329331000,258.0,0.00012,6]
[395012789,1764329432222,-684.67976475,8.527e-05,2]
[395012790,1764329432234,-684.67976475,8.613e-05,2]
[395012791,1764329432243,-50.8404705,8.7e-05,2]
[395012792,1764329432255,-171.1595295,8.7e-05,2]
[395012793,1764329432265,-150.0,8.922e-05,2]
[395012794,1764329432274,-236.67976475,9.241e-05,2]
[395012795,1764329432283,-357.6443131,9.897e-05,2]
[395012858,1764329440428,-14083.99460249,9.897e-05,2]
[395012865,1764329440483,-985.71925194,9.897e-05,2]
[395012953,1764329443483,-1030.40296552,9.897e-05,2]
[395012954,1764329443495,-892.72318,9.897e-05,2]
[395012955,1764329443506,-9120.0,9.897e-05,2]
[395012956,1764329443680,-300.0,9.897e-05,2]
[395012987,1764329446458,-1374.64742244,9.897e-05,2]
[395012988,1764329446567,-6071.99999998,9.897e-05,2]
[395014258,1764330603969,162.31,1e-05,2]
[395014275,1764330632387,-601.1011369,7.907e-05,2]
[395014277,1764330632397,-384.1011369,7.987e-05,2]
[395014279,1764330632406,-217.0,7.987e-05,2]
[395014280,1764330632415,-166.29771586,8.109e-05,2]
[395014281,1764330632424,-163.1011369,8.92e-05,2]
[395014282,1764330632433,-63.61014121,9.241e-05,2]
[395014283,1764330632444,-162.44166311,9.241e-05,2]
[395014284,1764330632453,-414.0,9.484e-05,2]
[395014285,1764330632462,-300.0,9.693e-05,2]
[395014286,1764330632470,-300.0,9.693e-05,2]
[395014287,1764330632480,-300.0,9.693e-05,2]
[395014288,1764330632489,-300.0,9.693e-05,2]
[395014289,1764330632498,-842.0,9.693e-05,2]
[395014290,1764330632507,-48706.14902714,9.694e-05,2]
[395014291,1764330632524,-2730.9520842,9.694e-05,2]
[395014292,1764330632534,-380.57600175,9.694e-05,2]
[395014312,1764330638371,-2521.307953,9.597e-05,2]
[395014315,1764330638424,-4370.03352956,9.597e-05,2]
[395014316,1764330638433,-500.0,9.693e-05,2]
[395014317,1764330638442,-129.96647044,9.693e-05,2]
[395014364,1764330640631,-370.03352956,9.693e-05,2]
[395014366,1764330640640,-70.41647044,9.693e-05,2]
[395014372,1764330640684,-463.3476964,9.693e-05,2]
[395014374,1764330640693,-533.76416684,9.693e-05,2]
[395014376,1764330640703,-500.0,9.693e-05,2]
[395014377,1764330640712,-500.0,9.693e-05,2]
[395014379,1764330640721,-533.76416684,9.693e-05,2]
[395014381,1764330640731,-405.75409103,9.693e-05,2]
[395014382,1764330640741,-500.0,9.693e-05,2]
[395014383,1764330640750,-533.76416684,9.693e-05,2]
[395014384,1764330640760,-533.76416684,9.693e-05,2]
[395014385,1764330640769,-500.0,9.693e-05,2]
[395014386,1764330640779,-500.0,9.693e-05,2]
[395014387,1764330640788,-533.76416684,9.693e-05,2]
[395014388,1764330640797,-533.76416684,9.693e-05,2]
[395014389,1764330640806,-308.3996296,9.693e-05,2]
[395014390,1764330640815,-533.76416684,9.693e-05,2]
[395014391,1764330640825,-533.76416684,9.693e-05,2]
[395014392,1764330640834,-533.76416684,9.693e-05,2]
[395014393,1764330640844,-533.76416684,9.693e-05,2]
[395014394,1764330640853,-533.76416684,9.693e-05,2]
[395014395,1764330640862,-533.76416684,9.693e-05,2]
[395014396,1764330640871,-533.76416684,9.693e-05,2]
[395014397,1764330640880,-533.76416684,9.693e-05,2]
[395014398,1764330640889,-533.76416684,9.693e-05,2]
[395014399,1764330640898,-533.76416684,9.693e-05,2]
[395014400,1764330640907,-533.76416684,9.693e-05,2]
[395014401,1764330640916,-533.76416684,9.693e-05,2]
[395014402,1764330640926,-533.76416684,9.693e-05,2]
[395014403,1764330640935,-533.76416684,9.693e-05,2]
[395014404,1764330640944,-533.76416684,9.693e-05,2]
[395014405,1764330640953,-533.76416684,9.693e-05,2]
[395014406,1764330640963,-533.76416684,9.693e-05,2]
[395014407,1764330640972,-533.76416684,9.693e-05,2]
[395014408,1764330640982,-533.76416684,9.693e-05,2]
[395014409,1764330640992,-533.76416684,9.693e-05,2]
[395014410,1764330641002,-533.76416684,9.693e-05,2]
[395014411,1764330641011,-533.76416684,9.693e-05,2]
[395014412,1764330641020,-533.76416684,9.693e-05,2]
[395014413,1764330641030,-533.76416684,9.693e-05,2]
[395014414,1764330641039,-533.76416684,9.693e-05,2]
[395014415,1764330641048,-533.76416684,9.693e-05,2]
[395014416,1764330641057,-533.76416684,9.693e-05,2]
[395014417,1764330641066,-533.76416684,9.693e-05,2]
[395014418,1764330641075,-533.76416684,9.693e-05,2]
[395014419,1764330641084,-533.76416684,9.693e-05,2]
[395014420,1764330641093,-533.76416684,9.693e-05,2]
[395014421,1764330641102,-533.76416684,9.693e-05,2]
[395014422,1764330641114,-533.76416684,9.693e-05,2]
[395014423,1764330641123,-533.76416684,9.693e-05,2]
[395014424,1764330641132,-533.76416684,9.693e-05,2]
[395014425,1764330641141,-533.76416684,9.693e-05,2]